bitfinex/quotes_SOLUSD_20240917
["timestamp","ask_amount","ask_price","bid_price","bid_amount"]
[1726596038427,30.0,133.47,133.46,7.4925]
[1726596042934,23.902374,133.51,133.47,7.4918]
[1726596043239,30.0,133.48,133.47,7.4918]
[1726596043934,30.0,133.48,133.46,26.2234]
[1726596044141,30.0,133.48,133.47,7.4923]
[1726596045637,30.0,133.48,133.47,8.99058757]
[1726596045857,30.0,133.48,133.47,24.10899981]
[1726596046143,6.2848439,133.54,133.52,7.4895]
[1726596046144,0.2584439,133.54,133.52,7.4895]
[1726596047044,0.2584439,133.54,133.53,7.4889]
[1726596047550,0.2584439,133.54,133.52,26.2127]
[1726596048525,0.2584439,133.54,133.52,26.2128]
[1726596049648,0.2584439,133.54,133.51,7.4899]
[1726596049950,0.2584439,133.54,133.47,21.51321224]
[1726596049951,0.12549,133.53,133.49,18.7277]
[1726596050252,0.12549,133.53,133.51,7.49]
[1726596050631,0.2584439,133.54,133.52,8.9870685]
[1726596050838,0.2584439,133.54,133.53,7.4889]
[1726596052849,0.2584439,133.54,133.52,7.4893]
[1726596054449,0.2584439,133.54,133.51,7.4899]
[1726596054753,0.12549,133.53,133.51,7.49]
[1726596055050,31.265084,133.55,133.51,7.49]
[1726596055051,4.0353279,133.55,133.51,7.49]
[1726596055428,0.12549,133.54,133.51,7.49]
[1726596055835,7.61389,133.54,133.5,26.2166]
[1726596056427,0.12549,133.54,133.5,18.7262]
[1726596056950,7.61399,133.54,133.5,18.7262]
[1726596057154,0.12549,133.52,133.5,18.7262]
[1726596057368,0.12549,133.52,133.46,15.11841224]
[1726596057670,0.12549,133.52,133.44,6.4081439]
[1726596057671,7.61519,133.52,133.48,7.4915]
[1726596059552,0.12549,133.5,133.44,25.1426439]
[1726596059750,0.12549,133.5,133.45,7.4929]
[1726596059751,7.61649,133.5,133.45,7.4929]
[1726596059957,7.61649,133.5,133.46,7.4928]
[1726596060455,0.12549,133.5,133.47,7.492]
[1726596061640,0.12549,133.5,133.46,18.7314]
[1726596061838,0.12549,133.47,133.44,7.7523439]
[1726596062242,7.61779,133.47,133.44,0.2584439]
[1726596062453,7.4929,133.46,133.44,0.2584439]
[1726596062658,23.902374,133.48,133.44,7.7522439]
[1726596062849,31.394474,133.48,133.44,7.7522439]
[1726596063045,7.4924,133.47,133.44,0.2584439]
[1726596063439,0.12549,133.46,133.44,0.2584439]
[1726596064061,0.12549,133.45,133.44,0.2584439]
[1726596065849,37.840584,133.48,133.44,7.7524439]
[1726596066050,0.12549,133.47,133.44,7.7524439]
[1726596066457,7.61789,133.47,133.44,0.2584439]
[1726596067755,38.1860995,133.48,133.44,0.2584439]
[1726596067756,7.61889,133.45,133.44,0.2584439]
[1726596068260,31.395774,133.45,133.44,0.2584439]
[1726596069948,46.422074,133.45,133.44,0.2584439]
[1726596071754,31.395774,133.45,133.44,0.2584439]
[1726596077565,23.902374,133.45,133.44,0.2584439]
[1726596077976,21.5982,133.48,133.44,0.2584439]
[1726596078174,29.44442747,133.48,133.44,0.2584439]
[1726596078784,7.4929,133.46,133.44,0.2584439]
[1726596078984,7.4924,133.47,133.44,0.2584439]
[1726596079164,7.84622747,133.48,133.44,0.2584439]
[1726596079363,7.84622747,133.48,133.44,7.7522439]
[1726596079566,7.4916,133.49,133.44,7.7522439]
[1726596080775,15.32948906,133.5,133.46,7.4928]
[1726596081884,15.32948906,133.5,133.44,18.9927439]
[1726596081885,7.83888906,133.5,133.44,18.9927439]
[1726596082076,0.12549,133.47,133.44,18.9927439]
[1726596083072,7.61779,133.47,133.44,18.9927439]
[1726596083273,7.4923,133.47,133.44,0.2584439]
[1726596083589,0.12549,133.46,133.44,0.2584439]
[1726596084470,7.61839,133.46,133.44,0.2584439]
[1726596086071,0.12549,133.46,133.44,0.2584439]
[1726596086277,0.12549,133.47,133.44,0.2584439]
[1726596086785,15.32958906,133.5,133.45,18.7332]
[1726596086973,7.4907,133.5,133.45,18.7332]
[1726596087296,7.4912,133.49,133.45,26.2264]
[1726596087483,7.4908,133.5,133.46,7.4928]
[1726596088187,0.12549,133.49,133.46,7.4928]
[1726596088785,23.902374,133.5,133.47,7.4922]
[1726596089700,31.392974,133.5,133.46,7.4927]
[1726596090396,0.12549,133.47,133.44,7.7519439]
[1726596090990,23.776884,133.5,133.44,18.9920439]
[1726596091200,0.12549,133.49,133.44,18.9920439]
[1726596091403,0.12549,133.49,133.46,7.4928]
[1726596092098,0.12549,133.47,133.44,26.4859439]
[1726596092599,7.61869,133.46,133.44,0.2584439]
[1726596092995,0.12549,133.46,133.44,0.2584439]
[1726596093576,7.83836636,133.51,133.44,1.75724351]
[1726596093807,7.4917,133.48,133.45,18.7325]
[1726596094180,7.4914,133.49,133.45,26.2259]
[1726596095180,7.4918,133.48,133.45,18.7325]
[1726596095378,7.4918,133.48,133.44,7.7522439]
[1726596096096,0.12549,133.47,133.44,7.7522439]
[1726596096678,0.12549,133.47,133.45,7.4933]
[1726596097112,0.12549,133.48,133.45,7.4933]
[1726596099398,7.61729,133.48,133.44,26.4869439]
[1726596099585,7.61729,133.48,133.45,7.4934]
[1726596100398,7.61729,133.48,133.44,26.4868439]
[1726596101399,0.12549,133.46,133.45,7.4934]
[1726596101632,0.12549,133.48,133.45,26.227]
[1726596104317,7.4934,133.45,133.44,0.2584439]
[1726596104483,7.61889,133.45,133.44,0.2584439]
[1726596104685,31.395774,133.45,133.44,0.2584439]
[1726596105624,61.395774,133.45,133.44,0.2584439]
[1726596108395,30.12549,133.45,133.44,0.2584439]
[1726596108890,37.61889,133.45,133.44,0.2584439]
[1726596110117,61.395774,133.45,133.44,0.2584439]
[1726596111021,30.12549,133.45,133.44,0.2584439]
[1726596112387,30.0,133.45,133.44,0.2584439]
[1726596112593,30.0,133.45,133.44,7.7524439]
[1726596114416,0.12549,133.48,133.44,7.7524439]
[1726596115417,7.4918,133.48,133.44,0.2584439]
[1726596115606,7.61789,133.47,133.44,0.2584439]
[1726596116009,7.4919,133.48,133.44,7.7523439]
[1726596116205,0.12549,133.46,133.44,7.7523439]
[1726596117313,30.0,133.45,133.44,0.2584439]
[1726596118398,30.0,133.45,133.44,7.7524439]
[1726596122027,30.0,133.45,133.44,9.25110429]
[1726596122199,30.0,133.45,133.44,7.7524439]
[1726596123023,7.4918,133.48,133.44,7.7524439]
[1726596123518,0.12549,133.47,133.44,7.7524439]
[1726596124317,7.61789,133.47,133.44,0.2584439]
[1726596124625,7.4929,133.46,133.44,0.2584439]
[1726596124830,0.12549,133.45,133.44,0.2584439]
[1726596125126,30.12549,133.45,133.44,0.2584439]
[1726596126422,30.0,133.45,133.44,7.7524439]
[1726596126627,0.12549,133.47,133.44,7.7524439]
[1726596127701,7.61789,133.47,133.44,0.2584439]
[1726596128321,30.0,133.45,133.44,0.2584439]
[1726596128822,30.12549,133.45,133.44,0.2584439]
[1726596133112,37.61889,133.45,133.44,0.2584439]
[1726596133310,61.395774,133.45,133.44,0.2584439]
[1726596134031,7.4956,133.41,133.4,0.2584439]
[1726596134331,31.397974,133.41,133.4,0.2584439]
[1726596134731,0.12549,133.41,133.4,0.2584439]
[1726596135106,30.12549,133.41,133.4,0.2584439]
[1726596135319,61.397974,133.41,133.4,0.2584439]
[1726596138012,30.12549,133.41,133.4,0.2584439]
[1726596140639,30.0,133.41,133.4,7.7546439]
[1726596141233,7.4935,133.45,133.41,7.4953]
[1726596142229,0.12549,133.44,133.41,7.4953]
[1726596142411,7.61959,133.44,133.4,26.4940439]
[1726596142616,7.4955,133.42,133.4,0.2584439]
[1726596142936,0.12549,133.41,133.4,0.2584439]
[1726596143242,0.12549,133.41,133.4,7.7546439]
[1726596144114,0.12549,133.41,133.4,0.2584439]
[1726596145340,30.12549,133.41,133.4,0.2584439]
[1726596151552,53.902374,133.41,133.4,0.2584439]
[1726596152224,61.397974,133.41,133.4,0.2584439]
[1726596153557,69.23940132,133.41,133.4,0.2584439]
[1726596157735,69.11391132,133.41,133.4,0.2584439]
[1726596157932,69.23940132,133.41,133.4,0.2584439]
[1726596164455,89.23940132,133.41,133.4,0.2584439]
[1726596169052,89.23940132,133.41,133.36,0.2584439]
[1726596169053,31.274784,133.37,133.36,0.2584439]
[1726596169367,31.274784,133.37,133.34,0.2556773]
[1726596169368,31.275884,133.35,133.34,0.2556773]
[1726596169531,31.275884,133.35,133.32,0.2584439]
[1726596169532,7.5001,133.33,133.32,0.2584439]
[1726596169732,31.276984,133.33,133.32,0.2584439]
[1726596169955,39.12578361,133.33,133.32,0.2584439]
[1726596170281,69.12578361,133.33,133.32,0.2584439]
[1726596170962,69.25127361,133.33,133.32,0.2584439]
[1726596171554,61.75117361,133.33,133.32,0.2584439]
[1726596172251,69.25127361,133.33,133.32,0.2584439]
[1726596178266,37.84879961,133.33,133.32,0.2584439]
[1726596178652,30.0,133.33,133.32,7.7591439]
[1726596179470,30.0,133.33,133.32,26.5109439]
[1726596180847,30.12549,133.33,133.32,19.0102439]
[1726596181056,53.902374,133.33,133.32,0.2584439]
[1726596181364,61.402474,133.33,133.32,0.2584439]
[1726596181672,53.902374,133.33,133.32,0.2584439]
[1726596184286,61.402474,133.33,133.32,0.2584439]
[1726596190866,53.902374,133.33,133.32,0.2584439]
[1726596191478,30.0,133.33,133.32,0.2584439]
[1726596191787,37.83416052,133.33,133.32,0.2584439]
[1726596192579,30.0,133.33,133.32,0.2584439]
[1726596193087,53.902374,133.33,133.32,0.2584439]
[1726596195676,61.402474,133.33,133.32,0.2584439]
[1726596199895,81.402474,133.33,133.32,0.2584439]
[1726596200095,81.402474,133.33,133.28,0.2584439]
[1726596200096,31.404774,133.29,133.28,0.2584439]
[1726596201278,61.404774,133.29,133.28,0.2584439]
[1726596202420,53.902374,133.29,133.28,0.2584439]
[1726596202914,30.12549,133.29,133.28,0.2584439]
[1726596203305,37.968598,133.29,133.28,0.2584439]
[1726596204218,61.745482,133.29,133.28,0.2584439]
[1726596204994,30.0,133.29,133.28,7.7614439]
[1726596206086,30.0,133.29,133.28,0.2584439]
[1726596206493,30.12549,133.29,133.28,0.2584439]
[1726596208301,30.12549,133.29,133.28,7.7614439]
[1726596208912,30.0,133.29,133.28,7.7614439]
[1726596209211,7.84531817,133.33,133.31,16.5939]
[1726596209389,7.4975,133.38,133.32,18.7518]
[1726596209591,324.2298,133.41,133.32,18.7518]
[1726596209592,7.498,133.37,133.32,18.7518]
[1726596209797,15.33603458,133.37,133.32,18.7518]
[1726596211111,23.902374,133.36,133.32,18.7518]
[1726596211302,23.902374,133.36,133.33,7.5]
[1726596214105,0.12549,133.36,133.34,26.2484]
[1726596214518,0.12549,133.36,133.35,7.499]
[1726596215804,0.12549,133.36,133.34,26.2482]
[1726596217006,0.12549,133.36,133.33,7.4999]
[1726596217202,0.12549,133.36,133.34,7.4995]
[1726596218000,0.12549,133.36,133.35,7.499]
[1726596218194,0.12549,133.36,133.33,18.7504]
[1726596218400,23.902374,133.36,133.33,18.7504]
[1726596218616,31.400974,133.36,133.33,18.7504]
[1726596219319,31.400974,133.36,133.32,7.5005]
[1726596220114,31.400974,133.36,133.32,26.2523]
[1726596223910,0.12549,133.36,133.32,18.7518]
[1726596224414,0.12549,133.36,133.34,7.4992]
[1726596224624,0.12549,133.36,133.34,26.2481]
[1726596228038,0.12549,133.36,133.35,7.499]
[1726596228329,0.12549,133.36,133.34,26.2483]
[1726596229438,7.4975,133.38,133.36,18.746]
[1726596229439,23.902374,133.38,133.36,18.746]
[1726596229616,0.12549,133.39,133.36,26.2441]
[1726596231119,23.902374,133.39,133.36,26.2441]
[1726596231715,31.399174,133.39,133.36,18.746]
[1726596237939,23.902374,133.39,133.37,7.4975]
[1726596238138,0.12549,133.39,133.37,7.4975]
[1726596238445,23.902374,133.4,133.37,7.4975]
[1726596239316,0.12549,133.4,133.34,6.0542]
[1726596239508,7.62179,133.4,133.36,7.498]
[1726596241315,35.11549,133.4,133.32,1.49958662]
[1726596241517,0.12549,133.38,133.32,18.7508]
[1726596241716,0.12549,133.35,133.3,6.2457]
[1726596241923,0.12549,133.35,133.31,24.0947]
[1726596242122,23.902374,133.35,133.31,24.0947]
[1726596243620,23.902374,133.36,133.31,35.3462]
[1726596243838,23.902374,133.36,133.31,36.84634864]
[1726596244026,23.902374,133.36,133.32,7.5007]
[1726596245736,7.499,133.35,133.31,35.3462]
[1726596245944,23.902374,133.36,133.31,42.8469]
[1726596246124,31.400974,133.36,133.31,42.8469]
[1726596246746,23.902374,133.36,133.3,7.5017]
[1726596246914,23.902374,133.33,133.29,7.5023]
[1726596248524,23.902374,133.33,133.3,7.5018]
[1726596250245,0.12549,133.31,133.28,19.0152439]
[1726596250432,31.403674,133.31,133.28,19.0152439]
[1726596251036,23.902374,133.29,133.28,0.2584439]
[1726596253918,31.404774,133.29,133.28,0.2584439]
[1726596254123,23.902374,133.29,133.28,0.2584439]
[1726596255447,0.12549,133.29,133.28,7.7614439]
[1726596255638,22.1331,133.35,133.28,0.2584439]
[1726596255954,20.0,133.34,133.28,0.2584439]
[1726596256430,7.5007,133.32,133.28,7.7612439]
[1726596257031,23.902374,133.31,133.28,7.7612439]
[1726596260150,15.34038511,133.33,133.29,7.5022]
[1726596260456,7.84018511,133.33,133.3,7.5018]
[1726596260832,15.34048511,133.33,133.29,26.2581]
[1726596261424,23.902374,133.32,133.29,26.2581]
[1726596262124,31.403274,133.32,133.29,18.7559]
[1726596262528,31.403274,133.32,133.28,7.7612439]
[1726596262924,23.902374,133.3,133.28,0.2584439]
[1726596263437,0.12549,133.32,133.28,19.0156439]
[1726596263642,0.12549,133.32,133.29,7.5024]
[1726596264658,31.403274,133.32,133.29,7.5024]
[1726596265058,15.34058511,133.33,133.3,7.5018]
[1726596265239,7.84018511,133.33,133.3,7.5018]
[1726596266046,15.34038511,133.33,133.3,7.5018]
[1726596266540,0.12549,133.32,133.3,7.5018]
[1726596267063,31.403074,133.32,133.28,19.0156439]
[1726596267263,31.403074,133.32,133.28,26.5182439]
[1726596268946,31.403074,133.32,133.29,7.5024]
[1726596270143,23.902374,133.32,133.29,7.5024]
[1726596271685,23.402374,133.32,133.29,7.5024]
[1726596273181,23.402374,133.32,133.29,10.96812476]
[1726596274083,0.12549,133.31,133.29,10.96812476]
[1726596277985,7.84018511,133.33,133.3,18.7546]
[1726596278276,7.4999,133.34,133.3,18.7546]
[1726596278479,23.776884,133.33,133.3,18.7546]
[1726596278672,7.8383287,133.35,133.33,7.5001]
[1726596278983,30.0,133.34,133.33,7.5001]
[1726596279153,30.0,133.34,133.33,24.16306386]
[1726596279359,30.0,133.34,133.33,24.16302682]
[1726596279561,30.0,133.34,133.33,22.66318504]
[1726596279758,7.84344409,133.38,133.37,7.4979]
[1726596280280,23.8007439,133.42,133.38,7.4972]
[1726596280465,30.0,133.39,133.38,27.73965036]
[1726596280676,30.0,133.39,133.38,26.2403]
[1726596280857,0.2584439,133.42,133.4,7.4961]
[1726596281060,0.2584439,133.42,133.38,18.743]
[1726596281366,0.2584439,133.42,133.39,7.4967]
[1726596282917,0.2584439,133.42,133.4,7.4962]
[1726596283383,0.2584439,133.42,133.39,7.4966]
[1726596284361,0.2584439,133.42,133.4,7.4962]
[1726596284866,0.2584439,133.42,133.41,7.4956]
[1726596285358,0.2584439,133.42,133.4,18.7401]
[1726596285972,0.2584439,133.42,133.4,26.2359]
[1726596286178,0.2584439,133.42,133.41,7.4956]
[1726596290009,0.2584439,133.42,133.4,26.2361]
[1726596291283,0.2584439,133.42,133.41,7.4956]
[1726596291491,0.2584439,133.42,133.41,8.99461151]
[1726596294205,0.2584439,133.42,133.41,7.4956]
[1726596295398,0.2584439,133.42,133.41,8.99452264]
[1726596301917,0.2584439,133.42,133.41,24.12234459]
[1726596302422,0.2584439,133.42,133.41,22.62342195]
[1726596302721,0.2584439,133.42,133.41,24.12206027]
[1726596302907,0.2584439,133.42,133.41,7.4956]
[1726596303220,0.2584439,133.42,133.41,8.99438351]
[1726596303399,0.2584439,133.42,133.41,7.4956]
[1726596304008,0.2584439,133.42,133.41,8.99449665]
[1726596305199,0.2584439,133.42,133.41,7.4956]
[1726596312112,0.2584439,133.42,133.41,24.12233716]
[1726596312495,0.2584439,133.42,133.41,59.69883716]
[1726596313304,0.2584439,133.42,133.41,58.19992195]
[1726596315214,0.2584439,133.42,133.41,59.69868963]
[1726596315422,0.2584439,133.42,133.41,27.4956]
[1726596315720,0.2584439,133.42,133.4,33.86792195]
[1726596315721,0.2584439,133.42,133.4,18.7401]
[1726596316400,0.2584439,133.42,133.4,26.2362]
[1726596316811,0.2584439,133.42,133.39,7.4966]
[1726596317040,7.7536439,133.42,133.37,18.744]
[1726596317235,0.2584439,133.42,133.4,7.4962]
[1726596319919,0.2584439,133.42,133.41,7.4956]
[1726596322631,0.2584439,133.42,133.4,7.4961]
[1726596326433,0.2584439,133.42,133.39,18.7411]
[1726596326811,0.2584439,133.42,133.39,26.2375]
[1726596327012,0.2584439,133.42,133.39,18.7411]
[1726596327738,0.2584439,133.42,133.4,1.49913775]
[1726596327944,0.2584439,133.42,133.41,7.4956]
[1726596330326,0.2584439,133.42,133.41,26.2348]
[1726596331743,0.2584439,133.42,133.41,49.88639507]
[1726596333041,0.2584439,133.42,133.41,69.88639507]
[1726596333344,0.2584439,133.46,133.45,26.227]
[1726596333519,0.2584439,133.46,133.45,27.72514102]
[1726596333947,0.2584439,133.46,133.45,47.72514102]
[1726596334538,0.5070606,133.54,133.49,26.219]
[1726596334932,0.5070606,133.54,133.49,27.71678639]
[1726596336150,0.5070606,133.54,133.49,71.49367039]
[1726596337040,0.5070606,133.54,133.49,69.995884]
[1726596337348,0.5070606,133.54,133.53,69.988084]
[1726596337550,0.5070606,133.54,133.53,93.63967907]
[1726596338651,0.2584439,133.58,133.57,26.2034]
[1726596340165,0.2584439,133.58,133.57,27.7002595]
[1726596340527,0.2584439,133.58,133.57,49.85499507]
[1726596340730,0.5227187,133.62,133.61,7.4844]
[1726596340936,0.7031418,133.62,133.61,7.4844]
[1726596342466,0.7031418,133.62,133.6,26.1973]
[1726596342833,0.7031418,133.62,133.57,18.7158]
[1726596343357,0.2031418,133.62,133.58,7.4861]
[1726596344650,7.6871418,133.62,133.57,26.2023]
[1726596344851,7.6871418,133.62,133.58,7.486]
[1726596345345,0.2031418,133.62,133.59,7.4854]
[1726596345935,31.4643258,133.62,133.58,7.486]
[1726596347265,0.2031418,133.62,133.59,7.4855]
[1726596347435,30.2031418,133.62,133.59,7.4855]
[1726596347746,37.6870418,133.62,133.58,7.486]
[1726596347938,37.6870418,133.62,133.58,8.98299847]
[1726596348463,30.2031418,133.62,133.59,7.4855]
[1726596349341,30.2031418,133.62,133.6,18.7123]
[1726596349656,0.2031418,133.62,133.6,18.7123]
[1726596350554,7.6870418,133.62,133.58,7.486]
[1726596350762,37.6870418,133.62,133.58,7.486]
[1726596350966,37.6870418,133.62,133.58,8.98299906]
[1726596351266,37.6870418,133.62,133.58,7.486]
[1726596353041,0.12549,133.61,133.58,7.486]
[1726596353357,30.12549,133.61,133.58,8.98307787]
[1726596353866,37.60999,133.61,133.57,26.202]
[1726596354040,30.12549,133.61,133.58,8.98317787]
[1726596354245,23.9800258,133.62,133.59,26.1991]
[1726596354555,7.4845,133.61,133.57,7.4865]
[1726596354763,23.9800258,133.62,133.58,1.49700065]
[1726596355139,23.9800258,133.62,133.58,8.98260065]
[1726596355140,31.4639258,133.62,133.58,8.98260065]
[1726596355757,31.4639258,133.62,133.58,7.4856]
[1726596355961,31.45312027,133.62,133.58,7.4856]
[1726596357064,7.60999,133.61,133.57,7.4864]
[1726596357446,7.67643627,133.62,133.58,7.4858]
[1726596357646,7.4844,133.61,133.58,7.4858]
[1726596358844,7.4844,133.61,133.57,7.4865]
[1726596359767,7.4844,133.61,133.57,8.98360687]
[1726596360343,7.67633627,133.62,133.58,7.4861]
[1726596360542,7.61039,133.61,133.56,26.2038]
[1726596360969,7.61039,133.61,133.57,8.98349147]
[1726596361270,0.12549,133.61,133.58,7.4857]
[1726596362083,7.60999,133.61,133.58,7.4857]
[1726596364369,7.485,133.6,133.57,7.4865]
[1726596364977,7.61009,133.61,133.57,7.4865]
[1726596365269,7.4851,133.6,133.57,7.4865]
[1726596366370,7.61009,133.61,133.57,7.4865]
[1726596366973,7.485,133.6,133.57,7.4865]
[1726596372565,0.19233627,133.62,133.59,7.4851]
[1726596372860,0.19233627,133.62,133.6,8.98178565]
[1726596373078,0.19233627,133.62,133.61,8.98116832]
[1726596373252,0.19233627,133.62,133.61,24.07838867]
[1726596373459,0.19233627,133.62,133.61,44.07798008]
[1726596373975,0.274102,133.66,133.61,44.07798008]
[1726596373976,0.274102,133.66,133.65,26.1877]
[1726596374160,0.274102,133.66,133.65,41.28492035]
[1726596375375,0.274102,133.66,133.65,26.1877]
[1726596375574,0.274102,133.66,133.65,27.68378079]
[1726596375759,0.274102,133.66,133.65,42.78100114]
[1726596375961,0.274102,133.66,133.65,27.68378079]
[1726596377094,0.274102,133.66,133.65,26.1877]
[1726596381885,0.274102,133.66,133.64,7.4827]
[1726596382480,30.0,133.65,133.64,7.4827]
[1726596383506,30.0,133.65,133.63,7.4831]
[1726596383796,30.0,133.65,133.62,18.7084]
[1726596383978,30.0,133.65,133.62,26.1919]
[1726596384178,30.0,133.65,133.63,7.4832]
[1726596384377,30.0,133.65,133.64,7.4827]
[1726596385179,30.0,133.65,133.63,7.4831]
[1726596386576,30.0,133.65,133.64,1.49647273]
[1726596386781,30.0,133.65,133.64,26.1896]
[1726596391006,0.274102,133.66,133.63,7.4832]
[1726596392713,0.274102,133.66,133.63,8.97963944]
[1726596393310,0.274102,133.66,133.64,18.7066]
[1726596393489,0.274102,133.66,133.65,8.9784154]
[1726596394309,0.274102,133.66,133.65,7.4822]
[1726596394517,0.274102,133.66,133.65,8.97840299]
[1726596394809,0.274102,133.66,133.65,7.4822]
[1726596395693,0.274102,133.66,133.64,26.1891]
[1726596397599,0.274102,133.66,133.62,18.7097]
[1726596397801,0.274102,133.66,133.62,26.1932]
[1726596397802,7.755802,133.66,133.62,26.1932]
[1726596398012,7.755802,133.66,133.63,7.4833]
[1726596398207,0.274102,133.66,133.63,7.4833]
[1726596398394,0.274102,133.66,133.62,26.1934]
[1726596398395,7.756002,133.66,133.62,26.1934]
[1726596401321,7.4819,133.66,133.62,26.1934]
[1726596401623,7.7364404,133.66,133.62,26.1934]
[1726596403608,0.2545404,133.66,133.63,8.97941223]
[1726596404111,0.2545404,133.66,133.64,7.4827]
[1726596404315,0.2545404,133.66,133.64,18.7069]
[1726596404520,0.2545404,133.66,133.65,1.49628943]
[1726596404689,0.2545404,133.66,133.65,7.4822]
[1726596406317,0.2545404,133.66,133.65,8.97815339]
[1726596406815,0.2545404,133.66,133.65,7.4822]
[1726596407523,0.2545404,133.66,133.65,8.97815311]
[1726596409826,0.2545404,133.66,133.65,7.4822]
[1726596410007,0.2545404,133.66,133.65,8.97815196]
[1726596412125,0.2545404,133.66,133.65,7.4822]
[1726596418717,0.2545404,133.66,133.64,18.7069]
[1726596419324,0.2545404,133.66,133.64,26.1894]
[1726596420805,7.4828,133.64,133.61,7.4841]
[1726596421035,0.2545404,133.66,133.65,7.4822]
[1726596421439,0.2545404,133.66,133.65,26.1877]
[1726596422539,0.2545404,133.66,133.65,18.7055]
[1726596423342,0.2545404,133.66,133.63,7.4832]
[1726596423729,0.2545404,133.66,133.63,8.97967202]
[1726596424127,0.2545404,133.66,133.63,7.4832]
[1726596425823,0.2545404,133.66,133.63,1.49654227]
[1726596426219,0.2545404,133.66,133.62,18.7087]
[1726596427339,0.2545404,133.66,133.63,7.4832]
[1726596427544,0.2545404,133.66,133.64,7.4827]
[1726596428133,0.2545404,133.66,133.65,1.49645106]
[1726596428444,0.2545404,133.66,133.65,8.97865106]
[1726596428834,0.2545404,133.66,133.65,32.52896715]
[1726596429346,0.2545404,133.66,133.65,76.55683115]
[1726596429638,0.52248503,133.7,133.69,46.1798]
[1726596429937,0.52248503,133.7,133.69,47.67529018]
[1726596430128,0.52248503,133.7,133.69,26.1798]
[1726596439750,0.52248503,133.7,133.69,27.6752918]
[1726596440343,0.52248503,133.7,133.69,26.1798]
[1726596440842,0.52248503,133.7,133.66,18.7029]
[1726596441047,0.52248503,133.7,133.67,7.4809]
[1726596441851,8.00198503,133.7,133.66,26.1844]
[1726596442151,0.12549,133.69,133.65,7.482]
[1726596442446,23.902374,133.69,133.63,26.1902]
[1726596442823,23.902374,133.69,133.63,18.7073]
[1726596443129,7.4823,133.65,133.61,7.4843]
[1726596443545,7.4828,133.64,133.6,26.1968]
[1726596443940,0.12549,133.64,133.6,26.1968]
[1726596444141,0.12549,133.64,133.61,7.4843]
[1726596446262,7.4833,133.63,133.59,7.4854]
[1726596446558,7.4845,133.61,133.57,26.2023]
[1726596447263,7.484,133.62,133.57,26.2023]
[1726596447836,7.4844,133.61,133.57,26.2023]
[1726596448366,6.506,133.61,133.55,0.2630628]
[1726596448659,7.486,133.59,133.55,7.7507628]
[1726596448830,0.12549,133.6,133.56,18.7177]
[1726596449035,23.7496,133.63,133.57,1.4971883]
[1726596449236,23.902374,133.62,133.55,0.2630628]
[1726596449438,7.4849,133.61,133.55,0.2630628]
[1726596449642,31.386374,133.62,133.55,0.2630628]
[1726596450244,23.7493,133.63,133.59,7.4854]
[1726596450446,16.2659,133.63,133.59,7.4854]
[1726596450663,16.2659,133.63,133.59,18.7132]
[1726596450832,16.2659,133.63,133.61,7.4844]
[1726596451037,16.2659,133.63,133.6,7.4848]
[1726596451240,6.0267,133.64,133.61,8.98114375]
[1726596451459,31.45937677,133.66,133.61,1.49684375]
[1726596451655,31.45937677,133.66,133.62,7.4838]
[1726596451860,23.6298,133.66,133.63,1.49655393]
[1726596452162,13.7017,133.68,133.63,7.4829]
[1726596452365,7.481,133.68,133.64,8.97902954]
[1726596452664,23.97605436,133.69,133.63,18.7079]
[1726596452844,16.148,133.69,133.65,7.4817]
[1726596453465,16.148,133.69,133.65,7.482]
[1726596454857,0.52248503,133.7,133.67,7.4809]
[1726596455156,0.52248503,133.7,133.68,1.49599515]
[1726596455362,0.52248503,133.7,133.67,26.183]
[1726596456369,0.52248503,133.7,133.68,1.49597317]
[1726596456562,0.52248503,133.7,133.69,7.4799]
[1726596461951,0.2630628,133.73,133.72,26.174]
[1726596463577,0.2630628,133.73,133.71,7.4787]
[1726596464077,0.2630628,133.73,133.7,7.4793]
[1726596464281,0.2630628,133.73,133.71,7.4787]
[1726596465379,0.2630628,133.73,133.72,7.4783]